fUST/lending_fUST_20250506
["ID","MTS","AMOUNT","RATE_DAILY","PERIOD"]
[360011891,1746478256474,-400.0,0.00033972,8]
[360011892,1746478256483,-461.37,0.00033972,8]
[360011894,1746478256493,-352.803023,0.00033972,14]
[360011896,1746478256502,-352.803023,0.00033972,14]
[360011898,1746478256512,-430.1,0.00033972,8]
[360011900,1746478256521,-400.0,0.00033972,8]
[360011902,1746478256530,-563.39,0.00033972,8]
[360011904,1746478256539,-400.0,0.00033972,8]
[360011906,1746478256548,-151.0,0.00033972,14]
[360011908,1746478256557,-400.0,0.00033972,8]
[360011910,1746478256566,-151.0,0.00033972,14]
[360011912,1746478256575,-400.0,0.00033972,8]
[360011914,1746478256584,-400.0,0.00033972,8]
[360011916,1746478256594,-2969.31,0.00033972,8]
[360011918,1746478256603,-400.0,0.00033972,8]
[360011920,1746478256613,-177.83206127,0.00033972,8]
[360011922,1746478256622,-401.12,0.00033972,8]
[360011924,1746478256632,-400.0,0.00033972,8]
[360011926,1746478256642,-400.0,0.00033972,8]
[360011929,1746478256652,-3050.13,0.00033972,8]
[360011931,1746478256661,-2910.47,0.00033972,8]
[360011933,1746478256671,-773.72,0.00033972,8]
[360011935,1746478256680,-282.10619974,0.00033972,8]
[360011937,1746478256689,-1317.05,0.00033972,8]
[360011939,1746478256698,-151.0,0.00033972,14]
[360011941,1746478256709,-2598.82,0.00033972,8]
[360011943,1746478256719,-400.0,0.00033972,8]
[360011945,1746478256729,-417.65,0.00033972,8]
[360011947,1746478256738,-151.0,0.00033972,14]
[360011949,1746478256747,-552.03,0.00033972,8]
[360011950,1746478256757,-400.0,0.00033972,8]
[360011952,1746478256766,-400.0,0.00033972,8]
[360011955,1746478256776,-303.430025,0.00033972,14]
[360011957,1746478256785,-510.92,0.00033972,8]
[360011959,1746478256795,-2556.58,0.00033972,8]
[360011961,1746478256805,-303.430025,0.00033972,14]
[360011963,1746478256814,-151.0,0.00033972,14]
[360011964,1746478256824,-400.0,0.00033972,8]
[360011967,1746478256833,-717.05,0.00033972,8]
[360011968,1746478256842,-400.0,0.00033972,8]
[360011971,1746478256852,-2500.71,0.00033972,8]
[360011973,1746478256861,-1021.6,0.00033972,8]
[360011975,1746478256871,-400.0,0.00033972,8]
[360011977,1746478256881,-400.0,0.00033972,8]
[360011979,1746478256891,-400.0,0.00033972,8]
[360011981,1746478256900,-400.0,0.00033972,8]
[360011983,1746478256910,-1929.98,0.00033972,8]
[360011984,1746478256919,-400.0,0.00033972,8]
[360011986,1746478256928,-400.0,0.00033972,8]
[360011989,1746478256938,-419.74,0.00033972,8]
[360011991,1746478256947,-1671.31,0.00033972,8]
[360011993,1746478256960,-926.06,0.00033972,8]
[360011995,1746478256970,-400.0,0.00033972,8]
[360011997,1746478256979,-766.89,0.00033972,8]
[360011999,1746478256988,-1401.18,0.00033972,8]
[360012001,1746478256998,-400.0,0.00033972,8]
[360012003,1746478257008,-400.0,0.00033972,8]
[360012005,1746478257017,-2028.41,0.00033972,8]
[360012007,1746478257027,-1584.51,0.00033972,8]
[360012009,1746478257037,-2185.29,0.00033972,8]
[360012011,1746478257046,-1838.89,0.00033972,8]
[360012013,1746478257055,-704.07,0.00033972,8]
[360012015,1746478257064,-470.61921998,0.00033972,8]
[360012017,1746478257073,-400.0,0.00033972,8]
[360012019,1746478257083,-426.69,0.00033972,8]
[360012021,1746478257092,-559.26,0.00033972,8]
[360012023,1746478257102,-1274.13,0.00033972,8]
[360012025,1746478257112,-2367.5,0.00033972,8]
[360012027,1746478257121,-400.0,0.00033972,8]
[360012029,1746478257131,-400.0,0.00033972,8]
[360012031,1746478257140,-1755.88,0.00033972,8]
[360012033,1746478257149,-400.0,0.00033972,8]
[360012035,1746478257158,-400.0,0.00033972,8]
[360012037,1746478257168,-444.31,0.00033972,8]
[360012039,1746478257177,-400.0,0.00033972,8]
[360012041,1746478257187,-558.74,0.00033972,8]
[360012043,1746478257196,-400.0,0.00033972,8]
[360012045,1746478257208,-400.0,0.00033972,8]
[360012047,1746478257218,-400.0,0.00033972,8]
[360012049,1746478257227,-1256.74,0.00033972,8]
[360012051,1746478257237,-804.09,0.00033972,8]
[360012053,1746478257246,-8688.02,0.00033972,8]
[360012055,1746478257256,-441.62,0.00033972,8]
[360012057,1746478257265,-598.18,0.00033972,8]
[360012059,1746478257275,-400.0,0.00033972,8]
[360012061,1746478257284,-975.04,0.00033972,8]
[360012063,1746478257294,-400.0,0.00033972,8]
[360012065,1746478257304,-411.14,0.00033972,8]
[360012067,1746478257313,-400.0,0.00033972,8]
[360012069,1746478257322,-400.0,0.00033972,8]
[360012071,1746478257332,-400.0,0.00033972,8]
[360012073,1746478257341,-400.0,0.00033972,8]
[360012075,1746478257351,-1817.46,0.00033972,8]
[360012077,1746478257360,-436.25,0.00033972,8]
[360012079,1746478257369,-151.0,0.00033972,14]
[360012081,1746478257379,-400.0,0.00033972,8]
[360012083,1746478257388,-460.72,0.00033972,8]
[360012086,1746478257399,-3933.64,0.00033972,8]
[360012087,1746478257408,-491.82,0.00033972,8]
[360012089,1746478257417,-21455.99,0.00033972,8]
[360012091,1746478257427,-400.0,0.00033972,8]
[360012093,1746478257437,-400.0,0.00033972,8]
[360012095,1746478257446,-400.0,0.00033972,8]
[360012097,1746478257457,-699.19,0.00033972,8]
[360012099,1746478257466,-2258.67,0.00033972,8]
[360012101,1746478257475,-518.32,0.00033972,8]
[360012103,1746478257484,-866.11,0.00033972,8]
[360012105,1746478257494,-568.11,0.00033972,8]
[360012107,1746478257503,-1754.39,0.00033972,8]
[360012109,1746478257513,-160.579925,0.00033972,14]
[360012111,1746478257522,-400.0,0.00033972,8]
[360012113,1746478257532,-493.11,0.00033972,8]
[360012115,1746478257541,-2851.87,0.00033972,8]
[360012117,1746478257551,-2650.13,0.00033972,8]
[360012119,1746478257560,-400.76,0.00033972,8]
[360012121,1746478257570,-400.0,0.00033972,8]
[360012123,1746478257579,-400.0,0.00033972,8]
[360012125,1746478257589,-1576.25,0.00033972,8]
[360012127,1746478257599,-1372.78,0.00033972,8]
[360012129,1746478257608,-400.0,0.00033972,8]
[360012131,1746478257618,-999.53,0.00033972,8]
[360012133,1746478257627,-400.0,0.00033972,8]
[360012136,1746478257637,-516.04,0.00033972,8]
[360012138,1746478257647,-1376.17,0.00033972,8]
[360012139,1746478257656,-151.0,0.00033972,14]
[360012142,1746478257665,-661.72,0.00033972,8]
[360012144,1746478257675,-6359.3,0.00033972,8]
[360012146,1746478257684,-940.89,0.00033972,8]
[360012148,1746478257693,-400.0,0.00033972,8]
[360012150,1746478257706,-8405.77,0.00033972,8]
[360012152,1746478257716,-400.0,0.00033972,8]
[360012154,1746478257725,-1110.72,0.00033972,8]
[360012156,1746478257734,-1647.64,0.00033972,8]
[360012158,1746478257743,-487.22,0.00033972,8]
[360012160,1746478257753,-445.695408,0.00033972,14]
[360012162,1746478257762,-151.0,0.00033972,14]
[360012164,1746478257772,-445.695408,0.00033972,14]
[360012166,1746478257781,-400.0,0.00033972,2]
[360012168,1746478257790,-690.94,0.00033972,8]
[360012170,1746478257800,-400.0,0.00033972,8]
[360012172,1746478257809,-2712.48,0.00033972,8]
[360012174,1746478257818,-400.0,0.00033972,8]
[360012176,1746478257827,-306.86,0.00033972,2]
[360012178,1746478257836,-151.0,0.00033972,14]
[360012180,1746478257845,-400.0,0.00033972,8]
[360012182,1746478257854,-229.86228232,0.00033973,5]
[360012184,1746478257864,-342.30398618,0.0003402,10]
[360012186,1746478257873,-800.0,0.00034188,2]
[360012188,1746478257883,-800.0,0.00034197,2]
[360012190,1746478257894,-1465.62,0.00034246,8]
[360012192,1746478257904,-400.0,0.00034246,8]
[360012194,1746478257913,-400.0,0.00034246,8]
[360012196,1746478257922,-506.86,0.00034246,8]
[360012198,1746478257931,-400.0,0.00034246,8]
[360012200,1746478257940,-650.49,0.00034246,8]
[360012202,1746478257950,-400.0,0.00034246,8]
[360012203,1746478257962,-400.0,0.00034246,8]
[360012206,1746478257972,-400.0,0.00034246,8]
[360012207,1746478257982,-400.0,0.00034246,8]
[360012209,1746478257991,-404.2,0.00034246,8]
[360012211,1746478258001,-400.0,0.00034246,8]
[360012214,1746478258011,-1120.46,0.00034246,8]
[360012215,1746478258021,-400.0,0.00034246,8]
[360012217,1746478258030,-753.58,0.00034246,8]
[360012219,1746478258039,-400.0,0.00034246,8]
[360012221,1746478258048,-508.76018043,0.00034246,8]
[360012223,1746478258058,-400.0,0.00034246,8]
[360012225,1746478258067,-507.88,0.00034246,8]
[360012227,1746478258076,-400.0,0.00034246,8]
[360012229,1746478258085,-1829.51,0.00034246,8]
[360012231,1746478258094,-400.0,0.00034246,8]
[360012233,1746478258104,-400.0,0.00034246,8]
[360012235,1746478258113,-1620.57,0.00034246,8]
[360012237,1746478258122,-400.0,0.00034246,8]
[360012239,1746478258131,-592.51,0.00034246,8]
[360012241,1746478258141,-400.0,0.00034246,8]
[360012243,1746478258150,-537.21,0.00034246,8]
[360012245,1746478258159,-400.0,0.00034246,8]
[360012247,1746478258168,-2523.41,0.00034246,8]
[360012249,1746478258177,-547.87,0.00034246,8]
[360012250,1746478258186,-400.0,0.00034246,8]
[360012251,1746478258196,-400.0,0.00034246,8]
[360012252,1746478258206,-543.46,0.00034246,8]
[360012253,1746478258216,-400.0,0.00034246,8]
[360012254,1746478258225,-500.0,0.00034246,8]
[360012255,1746478258234,-400.0,0.00034246,8]
[360012256,1746478258243,-400.0,0.00034246,8]
[360012257,1746478258253,-770.95,0.00034246,8]
[360012258,1746478258262,-1081.95,0.00034246,8]
[360012259,1746478258272,-400.0,0.00034246,8]
[360012261,1746478258282,-400.0,0.00034246,8]
[360012263,1746478258291,-400.0,0.00034246,8]
[360012265,1746478258300,-400.0,0.00034246,8]
[360012267,1746478258309,-483.31,0.00034246,8]
[360012269,1746478258318,-1243.4,0.00034246,8]
[360012271,1746478258328,-1098.85,0.00034246,8]
[360012273,1746478258337,-482.85,0.00034246,8]
[360012275,1746478258346,-400.0,0.00034246,8]
[360012277,1746478258355,-566.0,0.00034246,8]
[360012279,1746478258364,-400.0,0.00034246,8]
[360012281,1746478258374,-438.69605216,0.00034246,8]
[360012283,1746478258383,-400.0,0.00034246,8]
[360012285,1746478258393,-400.0,0.00034246,8]
[360012287,1746478258402,-285.76663116,0.00034246,8]
[360012289,1746478258412,-400.0,0.00034246,8]
[360012291,1746478258422,-400.0,0.00034246,8]
[360012306,1746478258550,-400.0,0.00034246,8]
[360012308,1746478258562,-400.0,0.00034246,8]
[360012310,1746478258571,-709.8,0.00034246,8]
[360012312,1746478258581,-400.0,0.00034246,8]
[360012314,1746478258589,-400.0,0.00034246,8]
[360012316,1746478258599,-4121.14,0.00034246,8]
[360012318,1746478258608,-400.0,0.00034246,8]
[360012320,1746478258618,-812.34,0.00034246,8]
[360012322,1746478258627,-654.51,0.00034246,8]
[360012324,1746478258637,-160.15221425,0.00034246,8]
[360012326,1746478258646,-730.71,0.00034246,8]
[360012328,1746478258655,-400.0,0.00034246,8]
[360012330,1746478258665,-400.0,0.00034246,8]
[360012332,1746478258674,-400.0,0.00034246,8]
[360012334,1746478258684,-400.0,0.00034246,8]
[360012336,1746478258693,-400.0,0.00034246,8]
[360012338,1746478258703,-2752.23,0.00034246,2]
[360012340,1746478258713,-400.0,0.00034246,8]
[360012342,1746478258722,-432.56,0.00034246,8]
[360012344,1746478258732,-762.68,0.00034246,8]
[360012346,1746478258742,-431.94,0.00034246,8]
[360012348,1746478258751,-436.54,0.00034246,8]
[360012350,1746478258761,-400.0,0.00034246,8]
[360012352,1746478258769,-400.0,0.00034246,8]
[360012354,1746478258779,-673.29,0.00034246,8]
[360012356,1746478258788,-1252.09,0.00034246,8]
[360012358,1746478258797,-702.93,0.00034246,8]
[360012360,1746478258807,-400.0,0.00034246,8]
[360012362,1746478258817,-206.38757014,0.00034246,8]
[360012364,1746478258827,-400.0,0.00034246,8]
[360012366,1746478258836,-1335.89,0.00034246,8]
[360012368,1746478258845,-400.0,0.00034246,8]
[360012370,1746478258854,-409.22,0.00034246,8]
[360012372,1746478258863,-400.0,0.00034246,8]
[360012374,1746478258874,-990.15,0.00034246,8]
[360012376,1746478258883,-400.0,0.00034246,8]
[360012378,1746478258892,-400.0,0.00034246,8]
[360012380,1746478258902,-784.71,0.00034246,8]
[360012382,1746478258912,-624.56,0.00034246,8]
[360012384,1746478258921,-411.93,0.00034246,8]
[360012386,1746478258931,-446.32,0.00034246,8]
[360012388,1746478258939,-500.9,0.00034246,8]
[360012390,1746478258948,-827.29,0.00034246,8]
[360012392,1746478258960,-530.84,0.00034246,8]
[360012394,1746478258970,-693.82,0.00034246,8]
[360012395,1746478258980,-612.41,0.00034246,8]
[360012397,1746478258989,-400.0,0.00034246,8]
[360012399,1746478258999,-156.36191572,0.00034246,8]
[360012402,1746478259009,-461.37,0.00034246,8]
[360012403,1746478259019,-430.1,0.00034246,8]
[360012406,1746478259029,-400.0,0.00034246,8]
[360012407,1746478259039,-563.39,0.00034246,8]
[360012409,1746478259050,-400.0,0.00034246,8]
[360012411,1746478259059,-473.47610154,0.00034246,8]
[360012413,1746478259069,-400.0,0.00034246,8]
[360012415,1746478259079,-400.0,0.00034246,8]
[360012417,1746478259088,-2969.31,0.00034246,8]
[360012418,1746478259097,-400.0,0.00034246,8]
[360012420,1746478259107,-401.12,0.00034246,8]
[360012422,1746478259117,-400.0,0.00034246,8]
[360012423,1746478259126,-400.0,0.00034246,8]
[360012425,1746478259136,-3050.13,0.00034246,8]
[360012427,1746478259146,-2910.47,0.00034246,8]
[360012428,1746478259155,-773.72,0.00034246,8]
[360012430,1746478259165,-151.0,0.00034246,14]
[360012432,1746478259174,-1317.05,0.00034246,8]
[360012433,1746478259184,-2598.82,0.00034246,8]
[360012435,1746478259194,-400.0,0.00034246,8]
[360012437,1746478259203,-417.65,0.00034246,8]
[360012438,1746478259213,-250.580032,0.00034246,14]
[360012440,1746478259222,-552.03,0.00034246,8]
[360012441,1746478259231,-400.0,0.00034246,8]
[360012443,1746478259241,-400.0,0.00034246,8]
[360012444,1746478259250,-510.92,0.00034246,8]
[360012446,1746478259260,-2556.58,0.00034246,8]
[360012448,1746478259269,-400.0,0.00034246,8]
[360012449,1746478259278,-717.05,0.00034246,8]
[360012451,1746478259287,-400.0,0.00034246,8]
[360012453,1746478259297,-2500.71,0.00034246,8]
[360012454,1746478259306,-1021.6,0.00034246,8]
[360012456,1746478259315,-400.0,0.00034246,8]
[360012458,1746478259327,-400.0,0.00034246,8]
[360012459,1746478259336,-400.0,0.00034246,8]
[360012461,1746478259345,-468.328892,0.00034246,8]
[360012463,1746478259354,-1929.98,0.00034246,8]
[360012464,1746478259363,-303.67584513,0.00034246,8]
[360012466,1746478259373,-400.0,0.00034246,8]
[360012468,1746478259383,-419.74,0.00034246,8]
[360012470,1746478259393,-1671.31,0.00034246,8]
[360012472,1746478259402,-926.06,0.00034246,8]
[360012473,1746478259411,-400.0,0.00034246,8]
[360012475,1746478259421,-766.89,0.00034246,8]
[360012477,1746478259431,-1401.18,0.00034246,8]
[360012479,1746478259440,-400.0,0.00034246,8]
[360012480,1746478259450,-400.0,0.00034246,8]
[360012482,1746478259460,-2028.41,0.00034246,8]
[360012484,1746478259470,-1584.51,0.00034246,8]
[360012486,1746478259479,-2185.29,0.00034246,8]
[360012487,1746478259489,-1838.89,0.00034246,8]
[360012489,1746478259499,-704.07,0.00034246,8]
[360012491,1746478259508,-400.0,0.00034246,8]
[360012493,1746478259517,-426.69,0.00034246,8]
[360012494,1746478259526,-559.26,0.00034246,8]
[360012496,1746478259535,-1274.13,0.00034246,8]
[360012498,1746478259545,-2367.5,0.00034246,8]
[360012500,1746478259554,-400.0,0.00034246,8]
[360012501,1746478259564,-400.0,0.00034246,8]
[360012503,1746478259573,-1755.88,0.00034246,8]
[360012505,1746478259584,-400.0,0.00034246,8]
[360012507,1746478259593,-400.0,0.00034246,8]
[360012509,1746478259604,-444.31,0.00034246,8]
[360012510,1746478259614,-400.0,0.00034246,8]
[360012512,1746478259623,-558.74,0.00034246,8]
[360012514,1746478259632,-400.0,0.00034246,8]
[360012516,1746478259642,-400.0,0.00034246,8]
[360012517,1746478259651,-400.0,0.00034246,8]
[360012519,1746478259660,-1256.74,0.00034246,8]
[360012521,1746478259670,-804.09,0.00034246,8]
[360012523,1746478259679,-8688.02,0.00034246,8]
[360012524,1746478259689,-441.62,0.00034246,8]
[360012526,1746478259698,-598.18,0.00034246,8]
[360012528,1746478259709,-400.0,0.00034246,8]
[360012530,1746478259718,-975.04,0.00034246,8]
[360012531,1746478259728,-400.0,0.00034246,8]
[360012533,1746478259737,-411.14,0.00034246,8]
[360012535,1746478259746,-400.0,0.00034246,8]
[360012537,1746478259756,-400.0,0.00034246,8]
[360012538,1746478259766,-400.0,0.00034246,8]
[360012540,1746478259775,-400.0,0.00034246,8]
[360012542,1746478259785,-1817.46,0.00034246,8]
[360012544,1746478259795,-151.0,0.00034246,14]
[360012545,1746478259804,-436.25,0.00034246,8]
[360012547,1746478259813,-400.0,0.00034246,8]
[360012549,1746478259823,-460.72,0.00034246,8]
[360012551,1746478259832,-3933.64,0.00034246,8]
[360012552,1746478259841,-491.82,0.00034246,8]
[360012554,1746478259851,-21455.99,0.00034246,8]
[360012556,1746478259860,-400.0,0.00034246,8]
[360012557,1746478259869,-400.0,0.00034246,8]
[360012559,1746478259879,-400.0,0.00034246,8]
[360012561,1746478259888,-699.19,0.00034246,8]
[360012562,1746478259897,-2258.67,0.00034246,8]
[360012564,1746478259906,-518.32,0.00034246,8]
[360012566,1746478259916,-866.11,0.00034246,8]
[360012568,1746478259926,-568.11,0.00034246,8]
[360012569,1746478259935,-1754.39,0.00034246,8]
[360012571,1746478259945,-408.8007049,0.00034246,8]
[360012573,1746478259956,-493.11,0.00034246,8]
[360012575,1746478259970,-2851.87,0.00034246,8]
[360012576,1746478259979,-2650.13,0.00034246,8]
[360012578,1746478259989,-400.76,0.00034246,8]
[360012580,1746478259999,-400.0,0.00034246,8]
[360012582,1746478260008,-455.72701685,0.00034246,8]
[360012583,1746478260018,-1576.25,0.00034246,8]
[360012585,1746478260027,-1372.78,0.00034246,8]
[360012587,1746478260039,-400.0,0.00034246,8]
[360012589,1746478260050,-999.53,0.00034246,8]
[360012590,1746478260060,-400.0,0.00034246,8]
[360012591,1746478260070,-516.04,0.00034246,8]
[360012592,1746478260079,-1376.17,0.00034246,8]
[360012593,1746478260089,-151.0,0.00034246,14]
[360012594,1746478260099,-661.72,0.00034246,8]
[360012595,1746478260108,-6359.3,0.00034246,8]
[360012596,1746478260117,-940.89,0.00034246,8]
[360012597,1746478260127,-400.0,0.00034246,8]
[360012598,1746478260136,-8405.77,0.00034246,8]
[360012599,1746478260145,-400.0,0.00034246,8]
[360012600,1746478260155,-1110.72,0.00034246,8]
[360012601,1746478260164,-1647.64,0.00034246,8]
[360012602,1746478260173,-487.22,0.00034246,8]
[360012603,1746478260182,-445.695408,0.00034246,14]
[360012604,1746478260192,-151.0,0.00034246,14]
[360012605,1746478260201,-445.695408,0.00034246,14]
[360012606,1746478260212,-400.0,0.00034246,2]
[360012607,1746478260221,-690.94,0.00034246,8]
[360012608,1746478260231,-460.47320145,0.00034246,8]
[360012609,1746478260240,-2712.48,0.00034246,8]
[360012610,1746478260249,-400.0,0.00034246,8]
[360012611,1746478260258,-151.0,0.00034246,14]
[360012612,1746478260267,-400.0,0.00034246,8]
[360012613,1746478260276,-680.86567095,0.00034273,2]
[360012614,1746478260285,-151.0,0.000343,14]
[360012615,1746478260294,-501.34714269,0.00034314,30]
[360012616,1746478260303,-179.50503946,0.00034425,2]
[360012617,1746478260312,-160.0,0.000345,45]
[360012618,1746478260321,-476.8567,0.000345,2]
[360012619,1746478260330,-151.0,0.0003451,14]
[360012620,1746478260339,-1465.62,0.0003452,8]
[360012621,1746478260348,-400.0,0.0003452,8]
[360012622,1746478260357,-151.0,0.0003452,14]
[360012623,1746478260366,-400.0,0.0003452,8]
[360012624,1746478260375,-506.86,0.0003452,8]
[360012625,1746478260384,-400.0,0.0003452,8]
[360012626,1746478260393,-650.49,0.0003452,8]
[360012627,1746478260402,-400.0,0.0003452,8]
[360012628,1746478260411,-400.0,0.0003452,8]
[360012629,1746478260421,-400.0,0.0003452,8]
[360012630,1746478260430,-151.0,0.0003452,14]
[360012631,1746478260439,-400.0,0.0003452,8]
[360012632,1746478260448,-1120.46,0.0003452,8]
[360012633,1746478260460,-151.0,0.0003452,14]
[360012634,1746478260469,-400.0,0.0003452,8]
[360012635,1746478260479,-753.58,0.0003452,8]
[360012636,1746478260488,-400.0,0.0003452,8]
[360012637,1746478260497,-400.0,0.0003452,8]
[360012639,1746478260507,-507.88,0.0003452,8]
[360012641,1746478260516,-400.0,0.0003452,8]
[360012643,1746478260526,-1829.51,0.0003452,8]
[360012645,1746478260534,-400.0,0.0003452,8]
[360012647,1746478260543,-400.0,0.0003452,8]
[360012648,1746478260552,-1620.57,0.0003452,8]
[360012649,1746478260561,-281.25400012,0.0003452,8]
[360012650,1746478260570,-592.51,0.0003452,8]
[360012651,1746478260579,-400.0,0.0003452,8]
[360012652,1746478260588,-537.21,0.0003452,8]
[360012653,1746478260597,-400.0,0.0003452,8]
[360012654,1746478260606,-2523.41,0.0003452,8]
[360012655,1746478260615,-547.87,0.0003452,8]
[360012656,1746478260624,-400.0,0.0003452,8]
[360012657,1746478260634,-400.0,0.0003452,8]
[360012658,1746478260643,-543.46,0.0003452,8]
[360012659,1746478260653,-400.0,0.0003452,8]
[360012660,1746478260663,-500.0,0.0003452,8]
[360012661,1746478260672,-549.37431724,0.0003452,8]
[360012662,1746478260682,-151.0,0.0003452,14]
[360012663,1746478260692,-151.0,0.0003452,14]
[360012664,1746478260701,-400.0,0.0003452,8]
[360012665,1746478260712,-770.95,0.0003452,8]
[360012666,1746478260721,-1081.95,0.0003452,8]
[360012667,1746478260730,-400.0,0.0003452,8]
[360012668,1746478260739,-400.0,0.0003452,8]
[360012669,1746478260749,-176.87373293,0.0003452,8]
[360012670,1746478260759,-400.0,0.0003452,8]
[360012671,1746478260768,-483.31,0.0003452,8]
[360012672,1746478260778,-1243.4,0.0003452,8]
[360012673,1746478260788,-1098.85,0.0003452,8]
[360012674,1746478260798,-482.85,0.0003452,8]
[360012675,1746478260810,-400.0,0.0003452,8]
[360012676,1746478260819,-566.0,0.0003452,8]
[360012677,1746478260829,-400.0,0.0003452,8]
[360012678,1746478260839,-400.0,0.0003452,8]
[360012679,1746478260848,-400.0,0.0003452,8]
[360012680,1746478260858,-400.0,0.0003452,8]
[360012681,1746478260867,-422.77339681,0.0003452,8]
[360012682,1746478260876,-400.0,0.0003452,8]
[360012683,1746478260886,-400.0,0.0003452,8]
[360012684,1746478260896,-709.8,0.0003452,8]
[360012685,1746478260906,-400.0,0.0003452,8]
[360012686,1746478260915,-400.0,0.0003452,8]
[360012687,1746478260924,-4121.14,0.0003452,8]
[360012688,1746478261051,-400.0,0.0003452,8]
[360012689,1746478261061,-812.34,0.0003452,8]
[360012690,1746478261070,-654.51,0.0003452,8]
[360012691,1746478261080,-730.71,0.0003452,8]
[360012692,1746478261089,-400.0,0.0003452,8]
[360012693,1746478261099,-400.0,0.0003452,8]
[360012694,1746478261109,-400.0,0.0003452,8]
[360012695,1746478261119,-400.0,0.0003452,8]
[360012696,1746478261129,-400.0,0.0003452,8]
[360012697,1746478261139,-2752.23,0.0003452,2]
[360012698,1746478261148,-400.0,0.0003452,8]
[360012699,1746478261158,-432.56,0.0003452,8]
[360012700,1746478261167,-762.68,0.0003452,8]
[360012701,1746478261177,-431.94,0.0003452,8]
[360012702,1746478261187,-436.54,0.0003452,8]
[360012703,1746478261196,-400.0,0.0003452,8]
[360012704,1746478261205,-400.0,0.0003452,8]
[360012705,1746478261215,-673.29,0.0003452,8]
[360012706,1746478261224,-1252.09,0.0003452,8]
[360012707,1746478261234,-702.93,0.0003452,8]
[360012708,1746478261243,-400.0,0.0003452,8]
[360012709,1746478261252,-400.0,0.0003452,8]
[360012710,1746478261261,-1335.89,0.0003452,8]
[360012711,1746478261271,-400.0,0.0003452,8]
[360012712,1746478261280,-409.22,0.0003452,8]
[360012713,1746478261288,-400.0,0.0003452,8]
[360012714,1746478261298,-990.15,0.0003452,8]
[360012715,1746478261307,-400.0,0.0003452,8]
[360012716,1746478261317,-400.0,0.0003452,8]
[360012717,1746478261327,-784.71,0.0003452,8]
[360012718,1746478261335,-624.56,0.0003452,8]
[360012719,1746478261345,-411.93,0.0003452,8]
[360012720,1746478261355,-446.32,0.0003452,8]
[360012721,1746478261365,-500.9,0.0003452,8]
[360012722,1746478261374,-827.29,0.0003452,8]
[360012723,1746478261383,-530.84,0.0003452,8]
[360012724,1746478261393,-693.82,0.0003452,8]
[360012725,1746478261402,-612.41,0.0003452,8]
[360012726,1746478261411,-400.0,0.0003452,8]
[360012727,1746478261421,-461.37,0.0003452,8]
[360012728,1746478261431,-352.803023,0.0003452,14]
[360012729,1746478261440,-352.803023,0.0003452,14]
[360012730,1746478261450,-430.1,0.0003452,8]
[360012731,1746478261459,-400.0,0.0003452,8]